[Event "*** Titled Tuesday Blitz"]
[Site "Chess.com"]
[Date "2020.05.26"]
[Round "6"]
[White "malakismayil"]
[Black "RubensCezila"]
[Result "1/2-1/2"]
[WhiteElo "2301"]
[BlackElo "2459"]
[TimeControl "180+1"]
[EndTime "11:08:46 PDT"]
[Termination "Game drawn - insufficient material"]

1. e4 {[%clk 0:03:00.9]} 1... c6 {[%clk 0:03:00]} 2. d4 {[%clk 0:02:55.9]} 2...
d5 {[%clk 0:03:00.2]} 3. exd5 {[%clk 0:02:56.8]} 3... cxd5 {[%clk 0:03:00.3]} 4.
Bd3 {[%clk 0:02:51.6]} 4... Nc6 {[%clk 0:02:59.9]} 5. c3 {[%clk 0:02:51.7]} 5...
Qc7 {[%clk 0:02:59.9]} 6. h3 {[%clk 0:02:51.4]} 6... g6 {[%clk 0:02:58.5]} 7.
Nf3 {[%clk 0:02:51.6]} 7... Bf5 {[%clk 0:02:58.5]} 8. Bb5 {[%clk 0:02:50.7]}
8... Bg7 {[%clk 0:02:57.1]} 9. O-O {[%clk 0:02:49.5]} 9... Nf6 {[%clk
0:02:56.9]} 10. Nbd2 {[%clk 0:02:49.4]} 10... O-O {[%clk 0:02:56.7]} 11. Bxc6
{[%clk 0:02:41.7]} 11... bxc6 {[%clk 0:02:54.8]} 12. Nb3 {[%clk 0:02:36.6]}
12... Ne4 {[%clk 0:02:51.9]} 13. Nfd2 {[%clk 0:02:32.2]} 13... e5 {[%clk
0:02:45.6]} 14. Nxe4 {[%clk 0:02:30.1]} 14... Bxe4 {[%clk 0:02:40.1]} 15. Be3
{[%clk 0:02:23.6]} 15... Rab8 {[%clk 0:02:27.8]} 16. Qd2 {[%clk 0:02:15.9]}
16... Qe7 {[%clk 0:02:21.8]} 17. Rfe1 {[%clk 0:02:09.7]} 17... Qh4 {[%clk
0:02:11.1]} 18. f3 {[%clk 0:01:38.9]} 18... Bf5 {[%clk 0:02:05.2]} 19. dxe5
{[%clk 0:01:32.9]} 19... Bxe5 {[%clk 0:01:57.1]} 20. Bxa7 {[%clk 0:01:32]} 20...
Bf4 {[%clk 0:01:47.2]} 21. Be3 {[%clk 0:01:28.9]} 21... Bg3 {[%clk 0:01:47]} 22.
Bf2 {[%clk 0:01:25.1]} 22... Rfe8 {[%clk 0:01:40.6]} 23. Bxg3 {[%clk 0:01:23]}
23... Qxg3 {[%clk 0:01:40.7]} 24. Qf2 {[%clk 0:01:23.2]} 24... Qg5 {[%clk
0:01:41]} 25. Kh1 {[%clk 0:01:18.9]} 25... h5 {[%clk 0:01:38.8]} 26. h4 {[%clk
0:01:15]} 26... Qf4 {[%clk 0:01:38.4]} 27. Rxe8+ {[%clk 0:01:07.9]} 27... Rxe8
{[%clk 0:01:38]} 28. Re1 {[%clk 0:01:08.1]} 28... Ra8 {[%clk 0:01:34.4]} 29. a3
{[%clk 0:01:06.7]} 29... Rb8 {[%clk 0:01:27.8]} 30. Nd4 {[%clk 0:01:05.1]} 30...
Bd7 {[%clk 0:01:26.8]} 31. b4 {[%clk 0:00:51.4]} 31... Ra8 {[%clk 0:01:22.5]}
32. Ra1 {[%clk 0:00:51.5]} 32... Rxa3 {[%clk 0:01:02.1]} 33. Rxa3 {[%clk
0:00:39.3]} 33... Qc1+ {[%clk 0:01:02.2]} 34. Kh2 {[%clk 0:00:39.6]} 34... Qxa3
{[%clk 0:01:03.1]} 35. Qe3 {[%clk 0:00:39.2]} 35... c5 {[%clk 0:00:37]} 36. bxc5
{[%clk 0:00:32.7]} 36... Qxc5 {[%clk 0:00:36.4]} 37. Kh1 {[%clk 0:00:30.5]}
37... Qd6 {[%clk 0:00:32.9]} 38. Qg5 {[%clk 0:00:28.5]} 38... Kg7 {[%clk
0:00:31.6]} 39. Qe3 {[%clk 0:00:27.1]} 39... f6 {[%clk 0:00:30.3]} 40. Ne2
{[%clk 0:00:27.1]} 40... Qe5 {[%clk 0:00:30.3]} 41. Qxe5 {[%clk 0:00:24.2]}
41... fxe5 {[%clk 0:00:30.4]} 42. Kg1 {[%clk 0:00:25.1]} 42... Kf6 {[%clk
0:00:30.4]} 43. Kf2 {[%clk 0:00:23.5]} 43... Bb5 {[%clk 0:00:31]} 44. Nc1 {[%clk
0:00:23]} 44... Bc4 {[%clk 0:00:30.5]} 45. Ke3 {[%clk 0:00:22.5]} 45... g5
{[%clk 0:00:29.3]} 46. hxg5+ {[%clk 0:00:21.9]} 46... Kxg5 {[%clk 0:00:30.2]}
47. g3 {[%clk 0:00:22.2]} 47... h4 {[%clk 0:00:29.3]} 48. gxh4+ {[%clk
0:00:20.9]} 48... Kxh4 {[%clk 0:00:30.2]} 49. Kf2 {[%clk 0:00:20.9]} 49... Kh3
{[%clk 0:00:27.1]} 50. Ne2 {[%clk 0:00:18.6]} 50... Bxe2 {[%clk 0:00:18]} 51.
Kxe2 {[%clk 0:00:19.5]} 51... Kh4 {[%clk 0:00:15.1]} 52. Ke3 {[%clk 0:00:19.3]}
52... Kg5 {[%clk 0:00:15.5]} 53. Kf2 {[%clk 0:00:16.9]} 53... Kf4 {[%clk
0:00:14.9]} 54. Ke2 {[%clk 0:00:17.3]} 54... e4 {[%clk 0:00:13.5]} 55. fxe4
{[%clk 0:00:16.9]} 55... Kxe4 {[%clk 0:00:14.2]} 56. Kd2 {[%clk 0:00:16.5]}
56... d4 {[%clk 0:00:13.9]} 57. c4 {[%clk 0:00:14.7]} 57... d3 {[%clk
0:00:13.3]} 58. c5 {[%clk 0:00:13.7]} 58... Kd5 {[%clk 0:00:13.1]} 59. c6 {[%clk
0:00:14.6]} 59... Kxc6 {[%clk 0:00:13.3]} 60. Kxd3 {[%clk 0:00:15.5]} 1/2-1/2

[Event "*** Titled Tuesday Blitz"]
[Site "Chess.com"]
[Date "2020.05.26"]
[Round "6"]
[White "Pultis"]
[Black "mbachez"]
[Result "1-0"]
[WhiteElo "2721"]
[BlackElo "2529"]
[TimeControl "180+1"]
[EndTime "11:08:47 PDT"]
[Termination "Pultis won on time"]

1. d4 {[%clk 0:03:00.9]} 1... Nf6 {[%clk 0:02:58]} 2. c4 {[%clk 0:03:01]} 2...
Nc6 {[%clk 0:02:57.7]} 3. d5 {[%clk 0:03:00.5]} 3... Ne5 {[%clk 0:02:57.5]} 4.
b3 {[%clk 0:02:59.3]} 4... Ng6 {[%clk 0:02:54.2]} 5. Nc3 {[%clk 0:02:57]} 5...
e5 {[%clk 0:02:53.6]} 6. Bb2 {[%clk 0:02:55.4]} 6... Bc5 {[%clk 0:02:52.6]} 7.
e3 {[%clk 0:02:55.3]} 7... O-O {[%clk 0:02:52.4]} 8. Bd3 {[%clk 0:02:55.7]} 8...
d6 {[%clk 0:02:50.3]} 9. Nge2 {[%clk 0:02:56.2]} 9... a5 {[%clk 0:02:48.5]} 10.
O-O {[%clk 0:02:56.3]} 10... c6 {[%clk 0:02:48.2]} 11. Ng3 {[%clk 0:02:53.8]}
11... cxd5 {[%clk 0:02:39.7]} 12. cxd5 {[%clk 0:02:54.7]} 12... Bd7 {[%clk
0:02:39.3]} 13. Rc1 {[%clk 0:02:54.4]} 13... Re8 {[%clk 0:02:35.4]} 14. Nge4
{[%clk 0:02:54.9]} 14... Nxe4 {[%clk 0:02:23.8]} 15. Nxe4 {[%clk 0:02:55.8]}
15... b6 {[%clk 0:02:17.4]} 16. Nxc5 {[%clk 0:02:55.8]} 16... bxc5 {[%clk
0:02:08.7]} 17. Qd2 {[%clk 0:02:53]} 17... a4 {[%clk 0:02:06.4]} 18. b4 {[%clk
0:02:49.4]} 18... cxb4 {[%clk 0:01:59.3]} 19. Qxb4 {[%clk 0:02:50.3]} 19... Rb8
{[%clk 0:01:59.6]} 20. Qa3 {[%clk 0:02:50]} 20... Qb6 {[%clk 0:01:53.1]} 21. Bc3
{[%clk 0:02:48.2]} 21... Rec8 {[%clk 0:01:50.4]} 22. Rb1 {[%clk 0:02:46.6]}
22... Qc5 {[%clk 0:01:25.3]} 23. Qxc5 {[%clk 0:02:42.2]} 23... dxc5 {[%clk
0:01:23.3]} 24. Rxb8 {[%clk 0:02:24]} 24... Rxb8 {[%clk 0:01:22.9]} 25. Rb1
{[%clk 0:02:24.9]} 25... Rxb1+ {[%clk 0:01:18.4]} 26. Bxb1 {[%clk 0:02:25.8]}
26... f5 {[%clk 0:01:16.8]} 27. e4 {[%clk 0:02:20.6]} 27... f4 {[%clk
0:01:10.4]} 28. Bd3 {[%clk 0:02:14.3]} 28... Kf7 {[%clk 0:01:07.8]} 29. Ba5
{[%clk 0:01:57.2]} 29... Ke7 {[%clk 0:01:07.6]} 30. Bc7 {[%clk 0:01:57.1]} 30...
f3 {[%clk 0:00:55.4]} 31. gxf3 {[%clk 0:01:53.7]} 31... Kf6 {[%clk 0:00:45.1]}
32. Kf1 {[%clk 0:01:50.1]} 32... Nf4 {[%clk 0:00:43.9]} 33. Bc4 {[%clk
0:01:49.7]} 33... Bh3+ {[%clk 0:00:34.1]} 34. Ke1 {[%clk 0:01:49.2]} 34... Bg2
{[%clk 0:00:32]} 35. Bd8+ {[%clk 0:01:42.6]} 35... Kg6 {[%clk 0:00:19.5]} 36.
Be2 {[%clk 0:01:41.6]} 36... c4 {[%clk 0:00:16.4]} 37. Ba5 {[%clk 0:01:38.1]}
37... Nxe2 {[%clk 0:00:14.2]} 38. Kxe2 {[%clk 0:01:39]} 38... Kf7 {[%clk
0:00:14.4]} 39. Bc3 {[%clk 0:01:34.1]} 39... Kf6 {[%clk 0:00:13.8]} 40. h4
{[%clk 0:01:30.4]} 40... h6 {[%clk 0:00:12.9]} 41. h5 {[%clk 0:01:29.1]} 41...
g6 {[%clk 0:00:11.3]} 42. hxg6 {[%clk 0:01:30]} 42... Kxg6 {[%clk 0:00:11.5]}
43. Bxe5 {[%clk 0:01:29.7]} 43... h5 {[%clk 0:00:11.9]} 44. Ke3 {[%clk
0:01:27.6]} 44... h4 {[%clk 0:00:11.6]} 45. f4 {[%clk 0:01:28.1]} 45... h3
{[%clk 0:00:11.2]} 46. f5+ {[%clk 0:01:29]} 46... Kf7 {[%clk 0:00:10.8]} 47. Bh2
{[%clk 0:01:04]} 47... c3 {[%clk 0:00:09.7]} 48. e5 {[%clk 0:00:16]} 48... Bxd5
{[%clk 0:00:09.3]} 49. a3 {[%clk 0:00:16.7]} 49... Be4 {[%clk 0:00:08.6]} 50.
e6+ {[%clk 0:00:02.1]} 50... Kf6 {[%clk 0:00:07.5]} 51. Kxe4 {[%clk 0:00:01.7]}
51... c2 {[%clk 0:00:06]} 52. Be5+ {[%clk 0:00:02.6]} 52... Ke7 {[%clk
0:00:05.2]} 53. Bf4 {[%clk 0:00:03.5]} 53... h2 {[%clk 0:00:03.6]} 54. Ke5
{[%clk 0:00:02.5]} 54... h1=Q {[%clk 0:00:01.9]} 55. f6+ {[%clk 0:00:03.4]} 1-0

[Event "*** Titled Tuesday Blitz"]
[Site "Chess.com"]
[Date "2020.05.26"]
[Round "6"]
[White "Omk124"]
[Black "emperor87"]
[Result "1/2-1/2"]
[WhiteElo "2422"]
[BlackElo "2608"]
[TimeControl "180+1"]
[EndTime "11:08:55 PDT"]
[Termination "Game drawn by repetition"]

1. e4 {[%clk 0:03:00.9]} 1... c6 {[%clk 0:02:59.5]} 2. c4 {[%clk 0:03:00.8]}
2... d6 {[%clk 0:02:58.9]} 3. Nc3 {[%clk 0:03:00.5]} 3... g6 {[%clk 0:02:59.1]}
4. d4 {[%clk 0:03:00.5]} 4... Bg7 {[%clk 0:02:59.4]} 5. Nf3 {[%clk 0:03:00.5]}
5... Bg4 {[%clk 0:02:58.3]} 6. Be2 {[%clk 0:03:00.1]} 6... Nd7 {[%clk
0:02:58.2]} 7. O-O {[%clk 0:02:59.8]} 7... Ngf6 {[%clk 0:02:56]} 8. Be3 {[%clk
0:02:59]} 8... O-O {[%clk 0:02:54.4]} 9. Qc2 {[%clk 0:02:58.5]} 9... Qc7 {[%clk
0:02:53.5]} 10. Rad1 {[%clk 0:02:57]} 10... a5 {[%clk 0:02:52.1]} 11. Rfe1
{[%clk 0:02:56.9]} 11... Rfe8 {[%clk 0:02:50.2]} 12. a3 {[%clk 0:02:27.8]} 12...
a4 {[%clk 0:02:44.8]} 13. Nxa4 {[%clk 0:02:24.8]} 13... Nxe4 {[%clk 0:02:42.9]}
14. Qxe4 {[%clk 0:02:05.2]} 14... Bxf3 {[%clk 0:02:38.4]} 15. Bxf3 {[%clk
0:02:02.9]} 15... Rxa4 {[%clk 0:02:37.1]} 16. Qc2 {[%clk 0:02:03.8]} 16... Raa8
{[%clk 0:02:35.6]} 17. Bc1 {[%clk 0:02:01.9]} 17... e5 {[%clk 0:02:33.2]} 18.
dxe5 {[%clk 0:01:50.5]} 18... Nxe5 {[%clk 0:02:32.1]} 19. Be4 {[%clk 0:01:49.4]}
19... h5 {[%clk 0:02:25.1]} 20. g3 {[%clk 0:01:49.3]} 20... h4 {[%clk
0:02:23.3]} 21. Bf4 {[%clk 0:01:47.6]} 21... hxg3 {[%clk 0:02:21.5]} 22. hxg3
{[%clk 0:01:46.7]} 22... Bf6 {[%clk 0:02:20.2]} 23. Kg2 {[%clk 0:01:34.6]} 23...
Kg7 {[%clk 0:02:19.8]} 24. Qc1 {[%clk 0:01:34.4]} 24... Rh8 {[%clk 0:02:18.3]}
25. Rh1 {[%clk 0:01:34.9]} 25... Rxh1 {[%clk 0:02:16.2]} 26. Rxh1 {[%clk
0:01:35.8]} 26... Rh8 {[%clk 0:02:15.3]} 27. Rxh8 {[%clk 0:01:36.3]} 27... Kxh8
{[%clk 0:02:15]} 28. b4 {[%clk 0:01:37]} 28... Qe7 {[%clk 0:02:13.5]} 29. Qc2
{[%clk 0:01:23.4]} 29... g5 {[%clk 0:02:12.3]} 30. Bxe5 {[%clk 0:01:23.3]} 30...
Qxe5 {[%clk 0:02:12.2]} 31. Bf3 {[%clk 0:01:22.1]} 31... Kg7 {[%clk 0:02:11.4]}
32. a4 {[%clk 0:01:21.5]} 32... Qd4 {[%clk 0:02:08.7]} 33. b5 {[%clk 0:01:21.6]}
33... g4 {[%clk 0:02:07.7]} 34. Be4 {[%clk 0:01:17]} 34... d5 {[%clk 0:02:07.8]}
35. cxd5 {[%clk 0:01:17]} 35... cxd5 {[%clk 0:02:07.9]} 36. Bd3 {[%clk
0:01:15.2]} 36... Bd8 {[%clk 0:02:07.5]} 37. Qe2 {[%clk 0:01:11.5]} 37... Bb6
{[%clk 0:02:06.5]} 38. Bf5 {[%clk 0:01:09.1]} 38... Kf6 {[%clk 0:02:00]} 39.
Bxg4 {[%clk 0:01:08.7]} 39... Qxa4 {[%clk 0:01:57.2]} 40. Bf3 {[%clk 0:01:08.9]}
40... Qd4 {[%clk 0:01:54.7]} 41. Qa2 {[%clk 0:01:08.2]} 41... Qc5 {[%clk
0:01:49.8]} 42. Bxd5 {[%clk 0:01:04.2]} 42... Qxb5 {[%clk 0:01:49.3]} 43. Bxb7
{[%clk 0:01:01.8]} 43... Kg7 {[%clk 0:01:47.4]} 44. Bf3 {[%clk 0:01:02.1]} 44...
Bd4 {[%clk 0:01:46.4]} 45. Qd2 {[%clk 0:01:00.1]} 45... Qe5 {[%clk 0:01:45.7]}
46. Qd3 {[%clk 0:00:59.5]} 46... Qf6 {[%clk 0:01:45.5]} 47. Qe4 {[%clk
0:00:59.1]} 47... Qe5 {[%clk 0:01:45.1]} 48. Qg4+ {[%clk 0:00:59.1]} 48... Kf8
{[%clk 0:01:44.5]} 49. Be4 {[%clk 0:00:58.9]} 49... Qf6 {[%clk 0:01:43.9]} 50.
f4 {[%clk 0:00:58]} 50... Qb6 {[%clk 0:01:42.8]} 51. Qe2 {[%clk 0:00:57.7]}
51... Bf6 {[%clk 0:01:41.8]} 52. Bd5 {[%clk 0:00:55]} 52... Qd4 {[%clk
0:01:41.7]} 53. Ba2 {[%clk 0:00:54.6]} 53... Be7 {[%clk 0:01:39.9]} 54. Kh3
{[%clk 0:00:52.4]} 54... Qh8+ {[%clk 0:01:38.3]} 55. Kg2 {[%clk 0:00:50]} 55...
Bc5 {[%clk 0:01:36.7]} 56. Qc4 {[%clk 0:00:49.2]} 56... Qb2+ {[%clk 0:01:36.2]}
57. Kf3 {[%clk 0:00:37.6]} 57... Qb7+ {[%clk 0:01:35.8]} 58. Kg4 {[%clk
0:00:38.2]} 58... Qc7 {[%clk 0:01:35.4]} 59. Bb3 {[%clk 0:00:34.9]} 59... Qe7
{[%clk 0:01:35.1]} 60. Qd5 {[%clk 0:00:32.5]} 60... Ba3 {[%clk 0:01:33.9]} 61.
Qa8+ {[%clk 0:00:29.6]} 61... Kg7 {[%clk 0:01:33.2]} 62. Qd5 {[%clk 0:00:25.7]}
62... Bb2 {[%clk 0:01:33.3]} 63. Qd3 {[%clk 0:00:22.3]} 63... Bf6 {[%clk
0:01:32.5]} 64. Bc2 {[%clk 0:00:22.2]} 64... Qe6+ {[%clk 0:01:31]} 65. Kf3
{[%clk 0:00:22.1]} 65... Qh3 {[%clk 0:01:29.8]} 66. Qf5 {[%clk 0:00:19.2]} 66...
Qh1+ {[%clk 0:01:28.9]} 67. Kg4 {[%clk 0:00:19.3]} 67... Qh2 {[%clk 0:01:16.6]}
68. Qe4 {[%clk 0:00:19.8]} 68... Bc3 {[%clk 0:01:07.8]} 69. Bd3 {[%clk 0:00:20]}
69... Bf6 {[%clk 0:00:56.5]} 70. Qf5 {[%clk 0:00:20.3]} 70... Qh6 {[%clk
0:00:52.3]} 71. Kf3 {[%clk 0:00:19.9]} 71... Qh1+ {[%clk 0:00:51.5]} 72. Kg4
{[%clk 0:00:19.1]} 72... Qd1+ {[%clk 0:00:50.9]} 73. Kh3 {[%clk 0:00:19.7]}
73... Qh1+ {[%clk 0:00:49.2]} 74. Kg4 {[%clk 0:00:20.3]} 74... Qd1+ {[%clk
0:00:49.2]} 75. Kh3 {[%clk 0:00:21]} 75... Qh1+ {[%clk 0:00:46.7]} 76. Kg4
{[%clk 0:00:21.3]} 1/2-1/2

[Event "*** Titled Tuesday Blitz"]
[Site "Chess.com"]
[Date "2020.05.26"]
[Round "6"]
[White "MariaFominykh"]
[Black "Twitch_ElhamBlitz05"]
[Result "1-0"]
[WhiteElo "2358"]
[BlackElo "2572"]
[TimeControl "180+1"]
[EndTime "11:08:56 PDT"]
[Termination "MariaFominykh won by checkmate"]

1. d4 {[%clk 0:03:00.9]} 1... c6 {[%clk 0:03:00.9]} 2. Nf3 {[%clk 0:03:00.3]}
2... Nf6 {[%clk 0:03:01.1]} 3. c4 {[%clk 0:02:59.4]} 3... d5 {[%clk 0:03:02]} 4.
Nc3 {[%clk 0:02:58.8]} 4... g6 {[%clk 0:03:02.2]} 5. e3 {[%clk 0:02:56.9]} 5...
Bg7 {[%clk 0:03:02.8]} 6. b3 {[%clk 0:02:55]} 6... O-O {[%clk 0:03:03.4]} 7. Bd3
{[%clk 0:02:51.9]} 7... Bg4 {[%clk 0:03:03.8]} 8. h3 {[%clk 0:02:50.5]} 8...
Bxf3 {[%clk 0:03:04.5]} 9. Qxf3 {[%clk 0:02:50.1]} 9... Nbd7 {[%clk 0:03:03.1]}
10. O-O {[%clk 0:02:46.2]} 10... e5 {[%clk 0:03:00.8]} 11. cxd5 {[%clk
0:02:39.7]} 11... exd4 {[%clk 0:03:00.1]} 12. exd4 {[%clk 0:02:30.9]} 12... Nxd5
{[%clk 0:02:57.9]} 13. Nxd5 {[%clk 0:02:07.6]} 13... cxd5 {[%clk 0:02:58.8]} 14.
Qxd5 {[%clk 0:02:01]} 14... Nb6 {[%clk 0:02:58.7]} 15. Qxd8 {[%clk 0:01:50.3]}
15... Raxd8 {[%clk 0:02:59.6]} 16. Ba3 {[%clk 0:01:46.7]} 16... Rfe8 {[%clk
0:02:53.6]} 17. Rae1 {[%clk 0:01:40.8]} 17... Rxe1 {[%clk 0:02:47.3]} 18. Rxe1
{[%clk 0:01:39.9]} 18... Bxd4 {[%clk 0:02:47.7]} 19. Be4 {[%clk 0:01:34.4]}
19... Re8 {[%clk 0:01:57.1]} 20. Bb4 {[%clk 0:01:15.3]} 20... Kg7 {[%clk
0:01:08.5]} 21. Bxb7 {[%clk 0:01:10]} 21... Rd8 {[%clk 0:01:08]} 22. Kf1 {[%clk
0:00:47]} 22... Rd7 {[%clk 0:00:59.5]} 23. Bf3 {[%clk 0:00:43.2]} 23... Rc7
{[%clk 0:00:58.4]} 24. Be4 {[%clk 0:00:40.3]} 24... f5 {[%clk 0:00:38.4]} 25.
Bd3 {[%clk 0:00:35.2]} 25... Rd7 {[%clk 0:00:34.6]} 26. Bb5 {[%clk 0:00:33.8]}
26... Rd8 {[%clk 0:00:24.3]} 27. Re7+ {[%clk 0:00:32.1]} 27... Kf6 {[%clk
0:00:14.5]} 28. Rxh7 {[%clk 0:00:30.1]} 28... Rc8 {[%clk 0:00:15.1]} 29. Bd3
{[%clk 0:00:25.8]} 29... Nd5 {[%clk 0:00:14.7]} 30. Bd2 {[%clk 0:00:23.5]} 30...
Bc3 {[%clk 0:00:12.4]} 31. Ke2 {[%clk 0:00:18.7]} 31... Re8+ {[%clk 0:00:09.2]}
32. Kd1 {[%clk 0:00:14.6]} 32... Rd8 {[%clk 0:00:09.7]} 33. Bxc3+ {[%clk
0:00:13.5]} 33... Nxc3+ {[%clk 0:00:10.1]} 34. Kc2 {[%clk 0:00:13.6]} 34... Nxa2
{[%clk 0:00:10.6]} 35. Bc4 {[%clk 0:00:13.4]} 35... Nb4+ {[%clk 0:00:10.2]} 36.
Kc3 {[%clk 0:00:12.6]} 36... Na2+ {[%clk 0:00:07.3]} 37. Kc2 {[%clk 0:00:10.8]}
37... Nb4+ {[%clk 0:00:06.5]} 38. Kc3 {[%clk 0:00:10.9]} 38... a5 {[%clk
0:00:05.3]} 39. Rf7+ {[%clk 0:00:09.8]} 39... Kg5 {[%clk 0:00:04.1]} 40. g3
{[%clk 0:00:08.8]} 40... Rd1 {[%clk 0:00:03]} 41. f4+ {[%clk 0:00:08.2]} 41...
Kh6 {[%clk 0:00:02.9]} 42. g4 {[%clk 0:00:07.3]} 42... fxg4 {[%clk 0:00:03.8]}
43. hxg4 {[%clk 0:00:07]} 43... Re1 {[%clk 0:00:03.8]} 44. g5+ {[%clk
0:00:06.9]} 44... Kh5 {[%clk 0:00:04]} 45. Rh7+ {[%clk 0:00:05.2]} 45... Kg4
{[%clk 0:00:03.8]} 46. Rf7 {[%clk 0:00:05.8]} 46... Ra1 {[%clk 0:00:02.1]} 47.
f5 {[%clk 0:00:05.6]} 47... Ra2 {[%clk 0:00:02.2]} 48. fxg6 {[%clk 0:00:05.3]}
48... Rc2+ {[%clk 0:00:02]} 49. Kd4 {[%clk 0:00:05.5]} 49... Rd2+ {[%clk
0:00:01.6]} 50. Ke3 {[%clk 0:00:04.8]} 50... Rd8 {[%clk 0:00:01.9]} 51. g7
{[%clk 0:00:04.8]} 51... Rg8 {[%clk 0:00:01.8]} 52. Re7 {[%clk 0:00:04.4]} 52...
Kxg5 {[%clk 0:00:02.7]} 53. Bxg8 {[%clk 0:00:03]} 53... Nc2+ {[%clk 0:00:03.6]}
54. Ke2 {[%clk 0:00:01.6]} 54... Nb4 {[%clk 0:00:04.5]} 55. Ke3 {[%clk
0:00:01.5]} 55... Nd3 {[%clk 0:00:05.4]} 56. Ke4 {[%clk 0:00:02.2]} 56... Nf4
{[%clk 0:00:06.2]} 57. Ke5 {[%clk 0:00:02.3]} 57... Nd5 {[%clk 0:00:07.1]} 58.
Re8 {[%clk 0:00:02.6]} 58... Ne7 {[%clk 0:00:08]} 59. Bf7 {[%clk 0:00:02.9]}
59... Ng8 {[%clk 0:00:08.9]} 60. Rxg8 {[%clk 0:00:02.7]} 60... Kh4 {[%clk
0:00:09.3]} 61. Rf8 {[%clk 0:00:03.6]} 61... Kg3 {[%clk 0:00:10.2]} 62. g8=Q+
{[%clk 0:00:04.3]} 62... Kf2 {[%clk 0:00:11.1]} 63. Qg6 {[%clk 0:00:04.7]} 63...
Ke3 {[%clk 0:00:12]} 64. Qg5+ {[%clk 0:00:05.2]} 64... Kd3 {[%clk 0:00:11.5]}
65. Qf5+ {[%clk 0:00:06.1]} 65... Kc3 {[%clk 0:00:12.4]} 66. Qf4 {[%clk
0:00:06.9]} 66... Kb2 {[%clk 0:00:12.4]} 67. Qe4 {[%clk 0:00:07.8]} 67... Ka3
{[%clk 0:00:12.7]} 68. Qd4 {[%clk 0:00:08.7]} 68... a4 {[%clk 0:00:13.2]} 69.
Qc4 {[%clk 0:00:09.1]} 69... axb3 {[%clk 0:00:14.1]} 70. Qxb3# {[%clk
0:00:09.4]} 1-0

[Event "*** Titled Tuesday Blitz"]
[Site "Chess.com"]
[Date "2020.05.26"]
[Round "6"]
[White "maximnovik"]
[Black "Norival"]
[Result "0-1"]
[WhiteElo "2457"]
[BlackElo "2655"]
[TimeControl "180+1"]
[EndTime "11:08:58 PDT"]
[Termination "Norival won on time"]

1. c4 {[%clk 0:03:00.9]} 1... e5 {[%clk 0:02:55.6]} 2. g3 {[%clk 0:03:00.1]}
2... Nf6 {[%clk 0:02:55.6]} 3. Bg2 {[%clk 0:03:00.3]} 3... d5 {[%clk 0:02:55.9]}
4. cxd5 {[%clk 0:03:00.5]} 4... Nxd5 {[%clk 0:02:56.8]} 5. Nc3 {[%clk
0:03:00.6]} 5... Nb6 {[%clk 0:02:56.7]} 6. d3 {[%clk 0:03:00.4]} 6... Be7 {[%clk
0:02:56]} 7. Nf3 {[%clk 0:02:59.8]} 7... Nc6 {[%clk 0:02:56.1]} 8. O-O {[%clk
0:02:59.7]} 8... O-O {[%clk 0:02:56.6]} 9. a3 {[%clk 0:02:59.6]} 9... a5 {[%clk
0:02:56.1]} 10. Be3 {[%clk 0:02:58.8]} 10... Be6 {[%clk 0:02:55.3]} 11. Rc1
{[%clk 0:02:46.1]} 11... f6 {[%clk 0:02:54.9]} 12. Na4 {[%clk 0:02:44.5]} 12...
Rf7 {[%clk 0:01:59.6]} 13. Nxb6 {[%clk 0:02:16.9]} 13... cxb6 {[%clk 0:02:00.5]}
14. Nd2 {[%clk 0:02:16.4]} 14... Bf8 {[%clk 0:01:55.1]} 15. a4 {[%clk
0:02:00.9]} 15... Nd4 {[%clk 0:01:47]} 16. Nc4 {[%clk 0:01:54.3]} 16... Bc5
{[%clk 0:01:46.1]} 17. Bxd4 {[%clk 0:01:51.6]} 17... Bxd4 {[%clk 0:01:43.4]} 18.
Qb3 {[%clk 0:01:44.3]} 18... Rc8 {[%clk 0:01:24.9]} 19. e3 {[%clk 0:01:41.1]}
19... Bc5 {[%clk 0:01:25]} 20. Rfd1 {[%clk 0:01:37.4]} 20... Rd7 {[%clk
0:01:24.4]} 21. Be4 {[%clk 0:01:21.8]} 21... Kh8 {[%clk 0:01:22.5]} 22. Qb5
{[%clk 0:01:14.7]} 22... Ra8 {[%clk 0:00:49.7]} 23. Rd2 {[%clk 0:00:48.6]} 23...
g6 {[%clk 0:00:45.8]} 24. Rcd1 {[%clk 0:00:46.5]} 24... Bf7 {[%clk 0:00:39.1]}
25. Qb3 {[%clk 0:00:22.9]} 25... Rc8 {[%clk 0:00:36]} 26. Qb5 {[%clk 0:00:22.9]}
26... Kg7 {[%clk 0:00:34.9]} 27. Rc1 {[%clk 0:00:21.7]} 27... Ra8 {[%clk
0:00:33.8]} 28. Rdc2 {[%clk 0:00:21.8]} 28... h5 {[%clk 0:00:26.1]} 29. b4
{[%clk 0:00:18.2]} 29... Bxc4 {[%clk 0:00:22.5]} 30. Rxc4 {[%clk 0:00:16.9]}
30... axb4 {[%clk 0:00:22]} 31. Rxc5 {[%clk 0:00:14.8]} 31... bxc5 {[%clk
0:00:20.5]} 32. Rxc5 {[%clk 0:00:15.3]} 32... Rc8 {[%clk 0:00:12.7]} 33. Rxc8
{[%clk 0:00:15]} 33... Qxc8 {[%clk 0:00:13.6]} 34. Qxb4 {[%clk 0:00:15.5]} 34...
Qf8 {[%clk 0:00:12.5]} 35. Qb5 {[%clk 0:00:14.8]} 35... Qe7 {[%clk 0:00:12.4]}
36. a5 {[%clk 0:00:14.6]} 36... f5 {[%clk 0:00:11.7]} 37. Bg2 {[%clk 0:00:12.8]}
37... Kf6 {[%clk 0:00:11.9]} 38. h4 {[%clk 0:00:12.8]} 38... Kg7 {[%clk
0:00:11.8]} 39. Bf3 {[%clk 0:00:11.4]} 39... Kf6 {[%clk 0:00:10.9]} 40. Bg2
{[%clk 0:00:08.6]} 40... Rc7 {[%clk 0:00:11.1]} 41. Qb6+ {[%clk 0:00:08]} 41...
Kg7 {[%clk 0:00:11.2]} 42. d4 {[%clk 0:00:07.2]} 42... exd4 {[%clk 0:00:11.2]}
43. Qxd4+ {[%clk 0:00:05.6]} 43... Qf6 {[%clk 0:00:11]} 44. Qb4 {[%clk
0:00:05.8]} 44... Qe7 {[%clk 0:00:10.3]} 45. Qd4+ {[%clk 0:00:05.7]} 45... Kh7
{[%clk 0:00:10.7]} 46. Qb6 {[%clk 0:00:05.3]} 46... Rd7 {[%clk 0:00:10.6]} 47.
Bf3 {[%clk 0:00:05.4]} 47... Qf7 {[%clk 0:00:07.6]} 48. Kg2 {[%clk 0:00:05.5]}
48... Qe7 {[%clk 0:00:07.6]} 49. Qb5 {[%clk 0:00:05.3]} 49... Rc7 {[%clk
0:00:07.5]} 50. Qb6 {[%clk 0:00:05.3]} 50... Qf7 {[%clk 0:00:07]} 51. Qa7 {[%clk
0:00:05]} 51... Qd7 {[%clk 0:00:06.1]} 52. Qb8 {[%clk 0:00:05.2]} 52... Qe7
{[%clk 0:00:05.9]} 53. Qa7 {[%clk 0:00:04.4]} 53... Qg7 {[%clk 0:00:06.2]} 54.
Qb6 {[%clk 0:00:04.5]} 54... Kh6 {[%clk 0:00:06.6]} 55. Bd5 {[%clk 0:00:03.6]}
55... Qe7 {[%clk 0:00:06.1]} 56. Bf3 {[%clk 0:00:03.3]} 56... Kg7 {[%clk
0:00:06.1]} 57. Qd4+ {[%clk 0:00:02.6]} 57... Kh7 {[%clk 0:00:05.9]} 58. e4
{[%clk 0:00:02.2]} 58... Rd7 {[%clk 0:00:05.9]} 59. Qc4 {[%clk 0:00:01.2]} 59...
fxe4 {[%clk 0:00:04.9]} 60. Bxe4 {[%clk 0:00:01.4]} 60... Qf7 {[%clk 0:00:05.6]}
61. Bf3 {[%clk 0:00:01.6]} 61... Qxc4 {[%clk 0:00:05.4]} 0-1